bitfinex-derivatives/quotes_SOLF0:USTF0_20260202
["timestamp","ask_amount","ask_price","bid_price","bid_amount"]
[1770043398585,134.5242,104.16,104.06,212.11915047]
[1770043398784,70.66440692,104.17,104.09,134.6123]
[1770043398982,205.17800692,104.17,104.08,74.69756411]
[1770043399183,70.66440692,104.17,104.08,74.69756411]
[1770043399385,70.66440692,104.17,104.08,209.32266411]
[1770043399583,70.66440692,104.17,104.08,74.69756411]
[1770043399779,205.17580692,104.17,104.08,74.69756411]
[1770043399984,205.17580692,104.17,104.06,2.77948636]
[1770043399985,202.32917582,104.15,104.06,2.77948636]
[1770043400684,67.78877582,104.14,104.06,2.77948636]
[1770043401085,67.78877582,104.14,104.06,137.43088636]
[1770043401285,202.28847582,104.18,104.07,208.82115774]
[1770043401487,202.31297582,104.16,104.07,74.18305774]
[1770043401688,67.78877582,104.16,104.07,208.81765774]
[1770043401884,67.78877582,104.16,104.08,134.6206]
[1770043402089,67.78877582,104.19,104.09,208.79065774]
[1770043402285,202.29097582,104.18,104.09,74.18305774]
[1770043402486,67.78877582,104.17,104.09,74.18305774]
[1770043402692,67.78877582,104.17,104.09,208.79555774]
[1770043402990,67.78877582,104.2,104.12,134.5736]
[1770043403196,67.78877582,104.2,104.11,217.42125774]
[1770043403593,67.78877582,104.2,104.12,134.5729]
[1770043403800,67.78877582,104.23,104.14,134.5429]
[1770043404300,67.78877582,104.26,104.16,134.5203]
[1770043404500,67.78877582,104.25,104.15,208.71755774]
[1770043404701,202.20977582,104.24,104.15,74.18305774]
[1770043404896,202.24137582,104.22,104.12,74.18305774]
[1770043405100,67.78877582,104.2,104.09,229.74399613]
[1770043405301,67.78877582,104.2,104.11,134.5862]
[1770043405697,67.78877582,104.2,104.12,134.5727]
[1770043405905,67.78877582,104.23,104.13,134.5557]
[1770043406202,67.78877582,104.23,104.14,208.72615774]
[1770043406400,67.78877582,104.23,104.15,134.5327]
[1770043406898,76.42857582,104.26,104.16,134.518]
[1770043407106,67.78877582,104.26,104.18,134.4957]
[1770043407405,67.78877582,104.25,104.15,134.5327]
[1770043407604,67.78877582,104.25,104.16,143.1697]
[1770043407901,67.78877582,104.28,104.19,134.4789]
[1770043408095,67.78877582,104.28,104.2,143.1151]
[1770043408295,20.95803839,104.3,104.2,217.29815774]
[1770043408296,202.13217582,104.3,104.2,217.29815774]
[1770043408504,67.78877582,104.29,104.2,217.29845774]
[1770043408898,67.78877582,104.32,104.22,134.4446]
[1770043409100,67.78877582,104.31,104.22,74.18305774]
[1770043409407,67.78877582,104.3,104.2,134.471]
[1770043409606,67.78877582,104.3,104.22,134.4418]
[1770043409807,142.9398,104.33,104.24,134.4182]
[1770043409808,76.42287582,104.33,104.24,134.4182]
[1770043410005,76.42287582,104.33,104.19,134.4765]
[1770043410006,67.78877582,104.29,104.19,134.4765]
[1770043410305,67.78877582,104.28,104.18,208.66915774]
[1770043410604,67.78877582,104.28,104.19,217.31015774]
[1770043410802,67.78877582,104.28,104.21,134.4574]
[1770043411005,67.78877582,104.28,104.2,134.4701]
[1770043411203,67.78877582,104.28,104.19,208.66525774]
[1770043411400,67.78877582,104.31,104.21,134.4486]
[1770043411604,67.78877582,104.31,104.22,134.444]
[1770043411803,67.78877582,104.31,104.22,143.0867]
[1770043412003,67.78877582,104.31,104.22,8.6427]
[1770043412304,67.78877582,104.3,104.2,217.29665774]
[1770043412500,67.78877582,104.3,104.22,134.4443]
[1770043412699,67.78877582,104.3,104.21,134.4576]
[1770043413102,67.78877582,104.3,104.22,143.0873]
[1770043413701,76.42287582,104.33,104.24,134.4167]
[1770043414205,67.78877582,104.33,104.25,143.0456]
[1770043414605,67.78877582,104.33,104.25,8.6398]
[1770043415404,67.78877582,104.33,104.25,143.0455]
[1770043415899,67.78877582,104.33,104.25,217.22855774]
[1770043416106,223.02151421,104.36,104.26,143.0301]
[1770043416805,97.37821421,104.36,104.27,8.6383]
[1770043417112,76.42017582,104.36,104.27,217.20035774]
[1770043417309,8.6301,104.38,104.28,74.18305774]
[1770043417507,76.41887582,104.38,104.29,8.6367]
[1770043418105,210.65867582,104.38,104.29,8.6367]
[1770043418307,76.41957582,104.37,104.28,74.18305774]
[1770043418504,202.01257582,104.4,104.3,134.3412]
[1770043418711,67.78877582,104.43,104.35,142.9085]
[1770043419104,201.96367582,104.43,104.33,74.18305774]
[1770043419507,201.99557582,104.41,104.31,134.3289]
[1770043419703,67.78877582,104.41,104.31,208.51195774]
[1770043420312,202.01547582,104.39,104.29,134.3454]
[1770043420509,67.78877582,104.39,104.3,134.342]
[1770043421011,76.41637582,104.41,104.32,134.3162]
[1770043421201,67.78877582,104.41,104.32,134.3162]
[1770043421404,67.78877582,104.41,104.33,142.9364]
[1770043421710,67.78877582,104.35,104.26,134.393]
[1770043422012,76.41867582,104.38,104.29,8.6367]
[1770043422214,202.02967582,104.38,104.29,8.6367]
[1770043422414,75.14170728,104.38,104.29,134.354]
[1770043422706,75.14170728,104.38,104.28,208.54895774]
[1770043422707,75.14170728,104.38,104.28,208.55065774]
[1770043423110,83.77160728,104.38,104.29,8.6367]
[1770043423308,92.90689013,104.38,104.29,8.6367]
[1770043423509,83.77160728,104.38,104.29,142.9914]
[1770043423903,75.14170728,104.38,104.29,134.3547]
[1770043424108,67.78877582,104.41,104.32,208.49295774]
[1770043424309,75.14170728,104.44,104.36,134.2643]
[1770043424508,67.78877582,104.44,104.37,8.6301]
[1770043424806,67.78877582,104.44,104.33,134.3034]
[1770043424807,75.14170728,104.42,104.33,208.48645774]
[1770043425007,83.76830728,104.42,104.33,82.81655774]
[1770043425204,141.56723146,104.4,104.3,134.3332]
[1770043425408,7.35293146,104.38,104.29,208.52895774]
[1770043425814,7.35293146,104.38,104.31,8.635]
[1770043426014,67.78877582,104.39,104.32,134.316]
[1770043426313,7.35293146,104.4,104.32,134.316]
[1770043426314,7.35293146,104.4,104.32,142.9501]
[1770043426713,7.35293146,104.4,104.32,8.6341]
[1770043427319,75.14170728,104.42,104.34,134.2904]
[1770043427518,7.35293146,104.44,104.35,134.2666]
[1770043427714,68.67264759,104.45,104.36,134.2648]
[1770043427918,84.65047905,104.44,104.35,142.8982]
[1770043428222,84.65047905,104.44,104.35,8.6316]
[1770043428414,7.35293146,104.42,104.35,8.6316]
[1770043429615,77.29844759,104.43,104.35,8.6316]
[1770043430417,216.24763157,104.42,104.34,74.14542999]
[1770043430615,7.35293146,104.43,104.35,134.2759]
[1770043430819,83.80896045,104.44,104.35,134.2759]
[1770043431017,216.23463157,104.43,104.34,69.47278526]
[1770043431919,90.68653157,104.41,104.32,203.78868526]
[1770043432216,82.05913157,104.44,104.35,134.2753]
[1770043432421,82.05913157,104.44,104.36,8.631]
[1770043432622,9.11243135,104.43,104.34,203.76238526]
[1770043433217,216.22693157,104.44,104.34,203.76238526]
[1770043433416,74.70620011,104.43,104.34,69.47278526]
[1770043433618,74.70620011,104.42,104.33,203.77618526]
[1770043433820,74.70620011,104.42,104.34,134.2852]
[1770043434528,208.97160011,104.36,104.27,69.47278526]
[1770043434729,82.05913157,104.33,104.24,203.88978526]
[1770043435222,90.69303157,104.33,104.24,203.88978526]
[1770043435423,7.35293146,104.31,104.24,69.47278526]
[1770043435926,7.35293146,104.31,104.25,8.6402]
[1770043436122,7.35293146,104.31,104.24,69.47278526]
[1770043436327,8.6367,104.3,104.22,8.6426]
[1770043436826,82.05913157,104.27,104.18,203.96328526]
[1770043437629,82.05913157,104.27,104.19,143.1272]
[1770043437824,82.05913157,104.27,104.19,8.645]
[1770043438021,90.69813157,104.27,104.18,78.11858526]
[1770043438225,90.69813157,104.27,104.18,212.61438526]
[1770043438426,74.70620011,104.27,104.19,203.95558526]
[1770043438623,74.70620011,104.25,104.17,8.6464]
[1770043438821,74.70620011,104.25,104.17,143.1554]
[1770043439219,83.34690011,104.25,104.16,203.99398526]
[1770043439429,20.95496334,104.26,104.17,69.47278526]
[1770043439729,209.07670011,104.28,104.19,78.11778526]
[1770043439730,74.70620011,104.28,104.19,78.11778526]
[1770043439922,74.70620011,104.28,104.11,69.47278526]
[1770043440124,74.70620011,104.23,104.15,134.5323]
[1770043440328,9.14843435,104.24,104.16,69.47278526]
[1770043440525,9.14843435,104.25,104.16,69.47278526]
[1770043440720,230.05906345,104.26,104.16,69.47278526]
[1770043441121,74.70620011,104.25,104.17,134.5079]
[1770043441324,74.70620011,104.25,104.11,403.7331]
[1770043441325,134.4459,104.22,104.12,204.03878526]
[1770043441525,209.13870011,104.23,104.13,204.03348526]
[1770043441825,230.05656345,104.26,104.16,69.47278526]
[1770043442030,143.55844862,104.25,104.16,69.47278526]
[1770043442226,230.05656345,104.26,104.16,69.47278526]
[1770043442428,95.66116345,104.26,104.16,203.99528526]
[1770043443229,209.05460011,104.3,104.2,69.47278526]
[1770043443425,209.03550011,104.31,104.22,69.47278526]
[1770043443627,83.34200011,104.31,104.23,69.47278526]
[1770043443824,134.3458,104.3,104.2,203.94128526]
[1770043444035,74.70620011,104.31,104.21,212.57038526]
[1770043444225,74.70620011,104.34,104.25,69.47278526]
[1770043444428,74.70620011,104.34,104.25,203.87748526]
[1770043444631,9.15237477,104.33,104.25,69.47278526]
[1770043444827,217.63390011,104.34,104.25,69.47278526]
[1770043445128,9.15258776,104.33,104.25,69.47278526]
[1770043445328,74.70620011,104.34,104.25,203.87778526]
[1770043445524,74.70620011,104.37,104.28,203.84048526]
[1770043445720,74.70620011,104.37,104.28,212.47788526]
[1770043446123,74.70620011,104.4,104.3,203.81238526]
[1770043446329,8.94445649,104.39,104.31,69.47278526]
[1770043446530,217.54830011,104.4,104.31,69.47278526]
[1770043446725,8.94484511,104.39,104.31,69.47278526]
[1770043446930,217.54830011,104.4,104.31,69.47278526]
[1770043447127,226.51533732,104.39,104.28,212.47798526]
[1770043447334,8.95283721,104.38,104.29,203.82698526]
[1770043447533,83.33530011,104.39,104.3,134.3411]
[1770043447729,8.95381495,104.38,104.3,8.6359]
[1770043447934,217.56220011,104.39,104.3,8.6359]
[1770043448135,8.95459782,104.38,104.3,8.6359]
[1770043448329,83.33530011,104.39,104.3,8.6359]
[1770043448522,83.33530011,104.39,104.29,203.82698526]
[1770043448523,8.960377,104.38,104.29,203.82698526]
[1770043448830,217.56720011,104.39,104.29,203.82698526]
[1770043449032,8.96067648,104.38,104.29,203.82698526]
[1770043449231,217.56720011,104.39,104.29,203.82698526]
[1770043449438,8.96651369,104.38,104.29,78.10978526]
[1770043449735,8.96651369,104.37,104.29,78.10978526]
[1770043449935,217.57670011,104.38,104.29,69.47278526]
[1770043450236,8.96679156,104.37,104.31,134.3282]
[1770043450425,8.6282,104.4,104.3,203.81418526]
[1770043450633,8.97497351,104.39,104.3,69.47278526]
[1770043450831,8.97497351,104.38,104.3,69.47278526]
[1770043451036,8.97497351,104.37,104.3,69.47278526]
[1770043451335,238.50676345,104.4,104.3,212.44898526]
[1770043451531,238.50676345,104.4,104.28,134.3677]
[1770043451532,74.70620011,104.38,104.28,134.3677]
[1770043451739,208.98560011,104.35,104.26,8.6392]
[1770043452033,83.68780664,104.34,104.26,8.6392]
[1770043452233,8.98160653,104.33,104.26,8.6392]
[1770043452431,74.70620011,104.34,104.26,8.6392]
[1770043452636,8.7174962,104.33,104.26,8.6392]
[1770043452837,74.70620011,104.34,104.26,8.6392]
[1770043453029,8.71701038,104.33,104.26,8.6392]
[1770043453334,74.70620011,104.34,104.26,8.6392]
[1770043453529,95.66116345,104.37,104.27,203.85288526]
[1770043453834,8.71670197,104.36,104.28,203.83948526]
[1770043454033,83.33720011,104.37,104.28,69.47278526]
[1770043454229,8.71643608,104.36,104.28,69.47278526]
[1770043454433,8.71643608,104.35,104.28,69.47278526]
[1770043454634,217.58930011,104.37,104.28,69.47278526]
[1770043454936,8.71904693,104.36,104.28,212.47578526]
[1770043455136,83.33720011,104.37,104.28,212.47578526]
[1770043455337,8.71903644,104.36,104.28,212.47578526]
[1770043455531,83.33720011,104.37,104.28,212.47578526]
[1770043455532,8.71903644,104.35,104.28,78.11038526]
[1770043455737,83.4275328,104.34,104.26,8.639]
[1770043455941,8.72133269,104.33,104.26,8.639]
[1770043456133,8.6318,104.36,104.27,143.0169]
[1770043456437,74.70620011,104.37,104.28,203.83698526]
[1770043456634,8.63723339,104.36,104.28,203.83698526]
[1770043456941,8.63849272,104.35,104.28,69.47278526]
[1770043457139,8.63849272,104.34,104.25,203.87748526]
[1770043457340,8.6323,104.35,104.27,8.6381]
[1770043457635,8.64150205,104.34,104.27,143.018]
[1770043457840,229.91686345,104.37,104.27,143.018]
[1770043458140,134.2283,104.39,104.29,134.3491]
[1770043458141,8.64076749,104.36,104.29,134.3491]
[1770043458337,95.66116345,104.39,104.3,134.3418]
[1770043458540,8.64054771,104.38,104.3,134.3418]
[1770043458745,74.70620011,104.39,104.31,203.80148526]
[1770043459040,8.36416776,104.38,104.31,69.47278526]
[1770043459240,216.28573317,104.39,104.31,69.47278526]
[1770043459642,8.6299,104.38,104.31,69.47278526]
[1770043459843,86.08768573,104.37,104.28,207.52934154]
[1770043460142,70.3690852,104.39,104.31,207.49304154]
[1770043460742,15.98173306,104.38,104.3,8.6356]
[1770043461131,70.3690852,104.39,104.3,207.50544154]
[1770043461336,70.3690852,104.39,104.31,134.3286]
[1770043461740,70.3690852,104.39,104.3,207.50544154]
[1770043461933,70.3690852,104.39,104.31,134.3242]
[1770043462438,70.3690852,104.39,104.32,8.6344]
[1770043463945,70.3690852,104.39,104.33,8.6335]
[1770043464441,86.34801826,104.42,104.34,8.6328]
[1770043465344,86.34801826,104.42,104.35,8.632]
[1770043465541,86.34801826,104.42,104.33,207.46354154]
[1770043465941,86.34801826,104.42,104.34,8.6328]
[1770043466135,86.34801826,104.42,104.31,134.3283]
[1770043466136,77.72101826,104.4,104.31,134.3283]
[1770043466443,77.72101826,104.4,104.31,207.49234154]
[1770043466444,77.71918644,104.4,104.31,207.49234154]
[1770043467040,86.34728644,104.4,104.33,8.6336]
[1770043470846,70.3690852,104.4,104.33,134.3026]
[1770043471048,204.5157852,104.46,104.36,73.16404154]
[1770043471349,7.35010124,104.45,104.36,207.42714154]
[1770043471539,77.71918644,104.45,104.36,207.42714154]
[1770043471943,70.3690852,104.45,104.36,207.42714154]
[1770043472139,70.3690852,104.45,104.38,8.6295]
[1770043472140,86.34308644,104.45,104.38,8.6295]
[1770043472651,77.71918644,104.43,104.33,207.46664154]
[1770043472842,77.71918644,104.43,104.34,134.2904]
[1770043473048,70.3690852,104.42,104.33,73.16404154]
[1770043473245,70.3690852,104.42,104.33,207.46584154]
[1770043473552,70.3690852,104.42,104.35,134.2775]
[1770043473843,77.71918644,104.45,104.36,207.42764154]
[1770043474051,70.3690852,104.48,104.39,134.2259]
[1770043474238,70.3690852,104.48,104.41,8.6269]
[1770043474239,78.9906852,104.48,104.41,8.6269]
[1770043474444,7.35010124,104.5,104.41,207.36224154]
[1770043474643,7.35010124,104.5,104.41,73.16404154]
[1770043474644,7.35010124,104.48,104.41,73.16404154]
[1770043474853,7.35010124,104.48,104.38,207.39904154]
[1770043475048,211.83018644,104.48,104.38,207.39904154]
[1770043475452,77.71918644,104.48,104.38,207.39904154]
[1770043475650,77.71918644,104.48,104.4,8.6277]
[1770043476551,86.34068644,104.48,104.41,8.6268]
[1770043477052,7.35010124,104.5,104.41,341.55444154]
[1770043477259,86.33928644,104.5,104.43,8.6253]
[1770043477753,77.71918644,104.48,104.39,134.2248]
[1770043477954,77.71918644,104.48,104.39,134.2262]
[1770043478250,77.71918644,104.48,104.4,8.6273]
[1770043479043,78.9913852,104.47,104.4,8.6273]
[1770043479247,70.3690852,104.45,104.36,134.2577]
[1770043479449,7.35010124,104.44,104.36,134.2577]
[1770043479851,77.71918644,104.44,104.36,73.16404154]
[1770043480247,204.5703852,104.41,104.31,134.3262]
[1770043480451,77.71918644,104.4,104.31,134.3262]
[1770043480649,77.71918644,104.4,104.33,8.6336]
[1770043481054,7.35010124,104.42,104.34,8.6327]
[1770043481254,7.35010124,104.42,104.34,134.2897]
[1770043481955,7.35010124,104.42,104.33,8.6331]
[1770043481956,77.71918644,104.4,104.33,8.6331]
[1770043482156,7.35010124,104.42,104.33,207.46674154]
[1770043482358,70.3690852,104.43,104.35,134.2762]
[1770043482862,70.3690852,104.43,104.36,8.6311]
[1770043484446,78.9947852,104.43,104.36,8.6311]
[1770043484646,78.9947852,104.43,104.34,216.08424154]
[1770043484857,15.97690124,104.42,104.34,81.79654154]
[1770043486357,15.97690124,104.42,104.35,8.6319]
[1770043486557,15.97540124,104.44,104.35,207.44104154]
[1770043487254,77.71918644,104.46,104.39,134.2259]
[1770043487458,70.3690852,104.46,104.39,134.2259]
[1770043487758,70.3690852,104.46,104.39,134.2261]
[1770043487946,134.0947,104.5,104.41,134.1999]
[1770043487947,73.95856896,104.49,104.41,134.1999]
[1770043488154,89.9272702,104.52,104.43,142.7989]
[1770043488353,8.32432481,104.51,104.43,142.7989]
[1770043488558,81.3086702,104.52,104.43,142.7989]
[1770043488754,8.32726258,104.51,104.43,142.7989]
[1770043488960,81.3086702,104.52,104.44,8.6243]
[1770043489153,8.32648856,104.51,104.44,8.6243]
[1770043489358,81.3086702,104.52,104.44,8.6243]
[1770043489659,8.32409463,104.51,104.42,215.33291487]
[1770043489858,215.3697702,104.52,104.42,215.33291487]
[1770043490153,81.42595135,104.51,104.42,81.14641487]
[1770043490355,88.77605259,104.5,104.42,206.70711487]
[1770043490559,80.45115844,104.5,104.42,72.52061487]
[1770043490855,80.45115844,104.5,104.4,134.2114]
[1770043491059,81.42622722,104.49,104.4,134.2114]
[1770043491255,80.45115844,104.48,104.37,205.34490256]
[1770043491453,8.32644084,104.47,104.4,205.31150256]
[1770043491654,89.07215844,104.49,104.4,71.10170256]
[1770043491854,7.35010124,104.47,104.39,134.2255]
[1770043492152,7.35010124,104.47,104.38,205.33720256]
[1770043492556,7.35010124,104.47,104.39,8.6284]
[1770043492956,7.35010124,104.45,104.38,71.10170256]
[1770043493257,7.35010124,104.45,104.36,205.36200256]
[1770043493861,15.97430124,104.45,104.36,79.73270256]
[1770043494161,15.97430124,104.45,104.34,527.18476456]
[1770043494162,80.45115844,104.43,104.34,205.38630256]
[1770043494553,80.45115844,104.43,104.35,142.9094]
[1770043495059,80.45115844,104.43,104.35,8.6318]
[1770043495359,80.45115844,104.43,104.36,8.631]
[1770043495557,80.45115844,104.41,104.32,205.41720256]
[1770043495754,7.35010124,104.37,104.3,134.3318]
[1770043495952,7.35010124,104.37,104.29,205.45400256]
[1770043496756,7.35010124,104.35,104.27,134.3739]
[1770043497352,7.35010124,104.35,104.28,8.6377]
[1770043498460,7.35010124,104.35,104.28,143.0048]
[1770043498657,7.35010124,104.35,104.27,205.47960256]
[1770043498856,8.34439056,104.34,104.27,205.47960256]
[1770043499161,7.35010124,104.35,104.27,205.47960256]
[1770043499558,7.35010124,104.35,104.28,8.6376]
[1770043500258,73.1010572,104.36,104.29,142.9912]
[1770043500461,73.1010572,104.36,104.29,8.6368]
[1770043500657,97.42876755,104.35,104.27,71.10170256]
[1770043500859,80.45115844,104.33,104.25,8.6399]
[1770043501060,8.3490745,104.32,104.25,143.0456]
[1770043501262,7.35010124,104.32,104.25,8.6399]
[1770043501561,80.45115844,104.3,104.23,8.6415]
[1770043501864,73.1010572,104.3,104.23,134.4286]
[1770043502359,73.1010572,104.3,104.22,143.0871]
[1770043502560,73.1010572,104.3,104.24,134.4186]
[1770043502754,73.1010572,104.3,104.22,71.10170256]
[1770043502957,80.45115844,104.29,104.2,134.466]
[1770043503154,7.35010124,104.27,104.19,205.57570256]
[1770043503355,73.1010572,104.29,104.21,134.4579]
[1770043503557,80.45115844,104.29,104.22,143.0874]
[1770043503752,134.2746,104.36,104.22,143.0874]
[1770043503753,73.1010572,104.32,104.25,134.4013]
[1770043503957,73.1010572,104.32,104.24,134.4181]
[1770043504158,73.1010572,104.32,104.23,205.53240256]
[1770043504360,80.45115844,104.31,104.23,71.10170256]
[1770043504565,80.45115844,104.29,104.2,205.56340256]
[1770043504861,7.35010124,104.27,104.2,214.21220256]
[1770043505063,80.45115844,104.29,104.21,134.4533]
[1770043505254,80.45115844,104.29,104.21,8.6434]
[1770043505460,7.35010124,104.27,104.2,71.10170256]
[1770043505660,7.35010124,104.25,104.17,71.10170256]
[1770043505961,73.1010572,104.26,104.17,71.10170256]
[1770043505962,73.1010572,104.26,104.18,8.6459]
[1770043506163,73.1010572,104.26,104.18,134.4948]
[1770043506363,89.08865844,104.29,104.2,143.1123]
[1770043507064,89.08865844,104.29,104.2,8.6442]
[1770043507360,7.35010124,104.27,104.19,71.10170256]
[1770043507559,80.45115844,104.27,104.19,205.58490256]
[1770043507760,73.1010572,104.27,104.2,134.4705]
[1770043507966,73.1010572,104.27,104.19,71.10170256]
[1770043508165,73.1010572,104.27,104.17,134.5069]
[1770043508166,73.1010572,104.26,104.17,134.5069]
[1770043508667,73.1010572,104.26,104.18,134.4961]
[1770043508867,80.45115844,104.25,104.17,71.10170256]
[1770043509367,80.45115844,104.25,104.17,79.74820256]
[1770043509667,80.45115844,104.25,104.17,71.10170256]
[1770043509964,89.09175844,104.25,104.17,71.10170256]
[1770043510166,80.45115844,104.23,104.14,71.10170256]
[1770043510365,80.45115844,104.23,104.14,205.64820256]
[1770043510659,80.45115844,104.23,104.15,143.1816]
[1770043510858,80.45115844,104.23,104.14,71.10170256]
[1770043511057,80.45115844,104.23,104.11,382.28]
[1770043511058,73.1010572,104.2,104.11,205.68650256]
[1770043511256,73.1010572,104.2,104.13,134.5601]
[1770043512063,73.1010572,104.2,104.11,205.68650256]
[1770043512367,73.1010572,104.18,104.09,134.6106]
[1770043512563,73.1010572,104.18,104.09,205.71230256]
[1770043512868,80.45115844,104.18,104.09,205.71230256]
[1770043513069,73.1010572,104.18,104.1,205.70070256]
[1770043513258,73.1010572,104.18,104.1,71.10170256]
[1770043513463,73.1010572,104.18,104.11,134.5844]
[1770043513958,73.1010572,104.18,104.12,8.6508]
[1770043514160,214.95545844,104.18,104.07,205.73600256]
[1770043514358,7.35010124,104.16,104.07,205.73600256]
[1770043514559,80.45115844,104.16,104.08,8.6539]
[1770043514758,80.45115844,104.16,104.08,134.6258]
[1770043514967,80.45115844,104.16,104.07,205.73600256]
[1770043515165,223.62215844,104.16,104.07,79.75640256]
[1770043515462,89.09945844,104.16,104.07,214.39510256]
[1770043515659,80.45115844,104.16,104.07,205.74040256]
[1770043515969,89.09945844,104.16,104.07,205.73980256]
[1770043516164,89.09945844,104.16,104.07,71.10170256]
[1770043516469,80.45115844,104.14,104.06,2.77948636]
[1770043516670,80.45115844,104.14,104.07,134.6383]
[1770043516871,73.1010572,104.14,104.07,134.6383]
[1770043517162,7.35010124,104.16,104.06,208.53238892]
[1770043517163,89.09925844,104.16,104.06,208.53238892]
[1770043517470,7.35010124,104.14,104.06,208.53238892]
[1770043517670,89.10095844,104.14,104.06,2.77948636]
[1770043517963,73.1010572,104.13,104.06,2.77948636]
[1770043518169,73.1010572,104.13,104.06,137.42918636]
[1770043518559,73.1010572,104.13,104.06,2.77948636]
[1770043519070,7.35010124,104.15,104.08,143.2791]
[1770043519266,80.45115844,104.19,104.09,205.71420256]
[1770043519469,73.1010572,104.18,104.09,205.71420256]
[1770043519861,78.05973149,104.17,104.09,71.10170256]
[1770043520262,78.05973149,104.15,104.06,85.22908727]
[1770043520464,70.70963025,104.14,104.06,211.22348727]
[1770043520664,70.70963025,104.14,104.06,211.22408727]
[1770043520866,7.35010124,104.15,104.07,208.43300091]
[1770043521062,78.05973149,104.15,104.08,8.6542]
[1770043521472,78.05973149,104.15,104.07,73.79400091]
[1770043521674,86.70883149,104.15,104.07,82.44910091]
[1770043522174,70.70963025,104.15,104.08,8.6543]
[1770043523971,78.05973149,104.15,104.07,73.79400091]
[1770043524171,70.70963025,104.15,104.07,208.42830091]
[1770043524469,70.70963025,104.14,104.06,11.43498636]
[1770043524670,78.05973149,104.13,104.06,2.77948636]
[1770043526078,134.5387,104.15,104.07,134.6385]
[1770043526079,15.99950124,104.15,104.07,134.6385]
[1770043526375,7.38930314,104.12,104.06,2.77948636]
[1770043526771,86.75033339,104.12,104.06,2.77948636]
[1770043527372,70.70963025,104.15,104.07,269.2624]
[1770043527573,78.09893339,104.18,104.09,134.6104]
[1770043527971,70.70963025,104.18,104.12,134.5729]
[1770043528168,70.70963025,104.18,104.11,134.582]
[1770043528779,141.79730314,104.25,104.15,208.32560091]
[1770043529077,7.38930314,104.23,104.14,134.5463]
[1770043529277,7.38930314,104.22,104.12,208.36410091]
[1770043529480,141.83480314,104.22,104.12,591.52410091]
[1770043529676,7.38930314,104.24,104.16,269.0278]
[1770043529974,134.3807,104.27,104.17,208.30250091]
[1770043530274,143.0343,104.26,104.17,73.79400091]
[1770043530473,7.38930314,104.26,104.18,134.4959]
[1770043530671,141.73210314,104.3,104.2,134.4664]
[1770043530880,70.70963025,104.29,104.2,134.4664]
[1770043531074,79.34703025,104.29,104.2,8.6445]
[1770043531380,70.70963025,104.29,104.2,143.1142]
[1770043531572,134.3268,104.32,104.23,134.4291]
[1770043531573,70.70963025,104.32,104.23,134.4291]
[1770043531784,204.99693025,104.35,104.25,208.19960091]
[1770043532078,70.70963025,104.33,104.25,73.79400091]
[1770043532276,7.38930314,104.32,104.23,591.34310091]
[1770043532474,70.70963025,104.33,104.24,134.4155]
[1770043532882,212.41833339,104.32,104.23,73.79400091]
[1770043533077,212.41833339,104.32,104.21,383.08]
[1770043533078,78.09893339,104.3,104.21,383.08]
[1770043533379,7.38930314,104.3,104.23,134.4252]
[1770043533581,78.09893339,104.32,104.23,208.21920091]
[1770043533781,78.09893339,104.32,104.24,134.4181]
[1770043534476,78.09893339,104.32,104.23,208.21920091]
[1770043534682,78.09893339,104.32,104.23,73.79400091]
[1770043535384,78.09893339,104.32,104.23,216.86640091]
[1770043535578,70.70963025,104.31,104.23,73.79400091]
[1770043535778,7.38930314,104.3,104.23,73.79400091]
[1770043536077,78.09893339,104.3,104.21,391.7232]
[1770043536277,78.09893339,104.3,104.22,134.4444]
[1770043536482,70.70963025,104.3,104.22,134.4444]
[1770043536883,70.70963025,104.3,104.22,143.0868]
[1770043537078,7.38930314,104.32,104.24,208.21270091]
[1770043537278,7.38930314,104.32,104.22,134.4444]
[1770043537279,70.70963025,104.31,104.21,208.24420091]
[1770043537586,78.09893339,104.3,104.22,134.441]
[1770043537778,70.70963025,104.3,104.22,208.23500091]
[1770043537981,70.70963025,104.3,104.23,8.6415]
[1770043538385,70.70963025,104.3,104.23,143.0724]
[1770043538587,78.09893339,104.33,104.24,134.4181]
[1770043539488,78.09893339,104.33,104.25,8.6401]
[1770043540284,78.09893339,104.33,104.25,143.046]
[1770043540690,78.09893339,104.33,104.25,8.6401]
[1770043540986,86.73313339,104.33,104.23,599.74640091]
[1770043541186,78.09893339,104.29,104.21,134.4537]
[1770043541383,78.09893339,104.29,104.21,208.24770091]
[1770043541692,70.70963025,104.32,104.24,208.21200091]
[1770043542284,70.70963025,104.32,104.24,216.85290091]
[1770043542486,141.64170314,104.37,104.27,134.3783]
[1770043542687,134.2659,104.36,104.26,134.3917]
[1770043542989,7.38930314,104.33,104.25,73.79400091]
[1770043543380,7.38930314,104.35,104.27,134.3788]